[Event "FIDE WCCC U10 2018"]
[Site "Santiago de Compostela"]
[Date "2018.11.11"]
[Round "7"]
[White "Habans Aguerrea, Javier"]
[Black "Xiao, Tong"]
[Result "1/2-1/2"]
[ECO "A40"]
[WhiteElo "1892"]
[BlackElo "2022"]
[Annotator "NA RC"]
[PlyCount "94"]
[EventDate "2018.11.04"]
[EventType "swiss"]
[EventCountry "ESP"]
[SourceTitle "playchess.com"]
[Source "ChessBase"]
[SourceQuality "1"]
[TimeControl "40/5400+30:1800+30"]

{[%evp 16,94,15,32767,32767,32767,17,19,32767,8,20,32,44,32767,60,32767,32767,47,93,65,67,44,63,61,65,48,66,55,71,77,72,70,32767,82,32767,72,32767,32767,41,39,75,66,92,68,63,32767,32767,32767,32767,32767,32767,67,86,32767,99,102,100,116,32767,32767,147,32767,32767,32767,0,32767,32767,32767,0,0,32767,0,32767,75,48,51,222,15,15,0,167]} 1. d4 {[%emt 0:00:00]} e6 {[%emt 0:00:00]} 2. Nf3 {[%emt 0:00:00]} Nf6 {[%emt 0:00:23]} 3. Bf4 {[%emt 0:00:00]} c5 {[%emt 0:00:23]} 4. e3 {[%emt 0:00:10]} Nc6 {[%emt 0:00:55]} 5. c3 {[%emt 0:04:12]} b6 {[%emt 0:03:11]} 6. Bd3 {[%emt 0:00:31]} Bb7 {[%emt 0:00:56]} 7. Nbd2 {[%emt 0:00:13]} Be7 {[%emt 0:00:29]} 8. h3 {[%emt 0:00:08]} d6 {[%emt 0:00:34] A47: 1 d4 Nf6 2 Nf3 b6: Torre, London and Colle Systems} (8... d5 9. Ne5 O-O 10. O-O Nd7 11. Nxc6 Bxc6 12. a4 a5 13. Qe2 Nf6 14. Nf3 Bb7 15. Bb5 Qc8 16. Rac1 {0-1 (51) Vachier Lagrave,M (2723)-Caruana,F (2697) Biel 2010}) 9. dxc5 $146 {[%emt 0:01:17]} ({Predecessor:} 9. Qe2 O-O 10. O-O Re8 11. Rad1 cxd4 12. exd4 e5 13. dxe5 dxe5 14. Bh2 Qc8 15. Rfe1 Bc5 16. Ne4 Nxe4 17. Qxe4 g6 18. Qh4 Be7 {½-½ (44) Saveliev,A (2362)-Lobanov,S (2429) St Petersburg 2017}) 9... bxc5 {[%emt 0:00:35]} 10. O-O {[%emt 0:01:23]} O-O {[%emt 0:02:33]} 11. e4 {[%emt 0:02:13]} Re8 {[%emt 0:20:21]} 12. Qc2 {[%emt 0:02:48]} e5 {[%emt 0:01:41]} 13. Bh2 {[%emt 0:01:49]} h6 {[%emt 0:02:39]} 14. Nc4 {[%emt 0:03:52]} Bf8 {[%emt 0:03:28]} 15. Ne3 {[%emt 0:00:51]} Ne7 {[%emt 0:01:42]} 16. Nd2 {[%emt 0:09:40]} a6 {[%emt 0:08:56]} 17. Bc4 {[%emt 0:09:05]} Qd7 {[%emt 0:02:32]} 18. Qd3 {[%emt 0:06:01]} Ng6 {[%emt 0:01:57]} 19. Nd5 {[%emt 0:00:35]} Nxd5 {[%emt 0:01:23]} 20. Bxd5 {[%emt 0:00:13]} Bxd5 {[%emt 0:00:49]} 21. Qxd5 {[%emt 0:00:15]} Nf4 {[%emt 0:05:23]} 22. Bxf4 {[%emt 0:00:18]} exf4 {[%emt 0:00:07]} 23. Nc4 {[%emt 0:02:32]} Qe6 {[%emt 0:01:30]} 24. Qxe6 {[%emt 0:00:56]} fxe6 {[%emt 0:00:10]} 25. Rad1 {[%emt 0:00:23]} Rab8 {[%emt 0:02:37]} 26. b3 {[%emt 0:06:30]} Rbd8 {[%emt 0:00:21]} 27. Rd3 {[%emt 0:01:59]} Rd7 {[%emt 0:00:31]} 28. Rfd1 {[%emt 0:00:35]} Red8 {[%emt 0:00:10]} 29. Kf1 {[%emt 0:02:12]} g5 {[%emt 0:01:29]} 30. f3 {[%emt 0:02:54]} d5 {[%emt 0:03:00]} 31. exd5 {[%emt 0:01:59]} Rxd5 {[%emt 0:00:45]} 32. Ke2 {[%emt 0:00:57]} Kf7 {[%emt 0:01:10]} 33. Nb6 {[%emt 0:05:27]} Re5+ {[%emt 0:03:01]} 34. Kf2 {[%emt 0:05:31]} Rxd3 {[%emt 0:00:20]} 35. Rxd3 {[%emt 0:00:01]} Be7 {[%emt 0:03:27]} 36. c4 {[%emt 0:04:51]} g4 {[%emt 0:04:30]} 37. fxg4 {[%emt 0:01:16]} Bh4+ {[%emt 0:00:13]} 38. Kf3 {[%emt 0:00:15]} Bg3 {[%emt 0:00:26]} 39. h4 {[%emt 0:08:00]} Re1 {[%emt 0:00:15]} 40. g5 {[%emt 0:00:00]} h5 {[%emt 0:00:00]} 41. Nd7 {[%emt 0:03:15]} Rf1+ {[%emt 0:02:54]} 42. Ke2 {[%emt 0:03:08]} Rf2+ {[%emt 0:00:10]} 43. Kd1 {[%emt 0:00:11]} Bxh4 {[%emt 0:02:42]} 44. Ne5+ {[%emt 0:04:58]} ({Reject} 44. Nxc5 Rxg2 45. Rd7+ Kg6 $11) 44... Kg7 {[%emt 0:01:56]} 45. Rd7+ {[%emt 0:03:21]} Kg8 {[%emt 0:03:52]} 46. Rd8+ $2 {[%emt 0:01:30]} (46. Nf3 $18 Bg3 47. Rd2) 46... Kg7 $1 {[%emt 0:00:08]} 47. Rd7+ {[%emt 0:00:06]} Kg8 $18 1/2-1/2

[Event "FIDE WCCC U10 2018"]
[Site "Santiago de Compostela"]
[Date "2018.11.11"]
[Round "7"]
[White "Seemann, Jakub"]
[Black "Chen, Muye"]
[Result "1-0"]
[ECO "B47"]
[WhiteElo "1869"]
[BlackElo "1636"]
[Annotator "NA RC"]
[PlyCount "97"]
[EventDate "2018.11.04"]
[EventType "swiss"]
[EventCountry "ESP"]
[SourceTitle "playchess.com"]
[Source "ChessBase"]
[SourceQuality "1"]
[TimeControl "40/5400+30:1800+30"]

{[%evp 25,97,151,219,197,256,32767,32767,78,32767,32767,32767,684,900,32767,32767,32767,32767,32767,32767,1973,1029,32767,669,717,691,748,720,32767,32767,32767,32767,783,796,835,827,845,956,1084,29989,29990,29990,3269,1271,5519,12832,5243,29992,588,29971,580,6125,12843,29974,29985,32767,32767,32767,32767,29989,29990,32767,32767,29991,29992,29992,29993,29993,29994,29994,29995,29996,32767,32767,29999]} 1. e4 c5 2. Nf3 e6 3. d4 cxd4 4. Nxd4 Nc6 5. Nc3 Qc7 6. Be2 a6 7. O-O b5 8. Nxc6 {B47: Sicilian: Taimanov: 5 Nc3 Qc7 6 f4, 6 g3 and 6 Be2} Qxc6 (8... dxc6 9. a4 b4 10. Nb1 Nf6 11. Nd2 Bd6 12. Kh1 Bxh2 13. g3 Bxg3 14. fxg3 Qxg3 15. Qe1 Qh3+ 16. Kg1 Ng4 17. Nf3 {1-0 (34) Navara,D (2725)-Movsesian,S (2673) Prague 2016}) 9. Bf3 Qc7 10. Re1 Bb7 11. a4 b4 12. Nd5 Bxd5 13. exd5 Rc8 {[#]} 14. dxe6 $146 ({Predecessor:} 14. Bg5 Bc5 15. Qe2 Qb6 {½-½ (42) Garcia,G (2510)-Stellwagen,D Hoogeveen 1998}) 14... fxe6 15. Bh5+ g6 16. Qd4 Nf6 17. Qxf6 Rg8 18. Bg4 Rg7 19. Bf4 Qc4 20. b3 Qc3 21. Rxe6+ Re7 22. Rxe7+ Bxe7 23. Qxc3 Rxc3 24. Re1 Kf7 25. Bxd7 Rxc2 26. Be6+ Kf6 27. Bc4 Bc5 28. Be5+ Kg5 29. Bg3 Bd4 30. h4+ Kh6 31. Re7 Ra2 32. Bf4+ Kh5 33. Be2+ (33. Rxh7+ $142 Kg4 34. Bg3 Kf5 35. Rf7+ Bf6 36. Bd6 Rc2 37. Bd3+ Ke6 38. Rxf6+ Kxf6 39. Bxc2) 33... Rxe2 34. Rxe2 Kxh4 35. Re4 Bc3 36. Bd2+ Kh5 37. g4+ Kh4 38. Bxc3 bxc3 39. Rc4 a5 40. Rxc3 Kxg4 41. Rc5 Kf4 42. Rxa5 Ke4 43. Rb5 h5 44. a5 h4 45. a6 h3 46. a7 h2+ 47. Kxh2 Kf3 48. a8=Q+ Kxf2 49. Re5 1-0

[Event "FIDE WCCC U10 2018"]
[Site "Santiago de Compostela"]
[Date "2018.11.11"]
[Round "7"]
[White "Kolesov, Gordey"]
[Black "Mogirzan, Matei-Valeriu"]
[Result "1-0"]
[ECO "D00"]
[WhiteElo "1823"]
[BlackElo "1939"]
[Annotator "NA RC"]
[PlyCount "101"]
[EventDate "2018.11.04"]
[EventType "swiss"]
[EventCountry "ESP"]
[SourceTitle "playchess.com"]
[Source "ChessBase"]
[SourceQuality "1"]
[TimeControl "40/5400+30:1800+30"]

1. d4 {[%emt 0:00:00]} d5 {[%emt 0:00:00]} 2. Bf4 {[%emt 0:00:16]} Nf6 {[%emt 0:02:56]} 3. e3 {[%emt 0:01:10]} c5 {[%emt 0:00:25]} 4. c3 {[%emt 0:01:36]} Qb6 {[%emt 0:00:29]} 5. Qb3 {[%emt 0:00:50] D00: 1 d4 d5: Unusual lines} c4 {[%emt 0:00:41]} (5... Nc6 6. Nd2 g6 7. Qxb6 axb6 8. Bc7 Nd7 9. Bb5 Bg7 10. Ngf3 O-O 11. O-O e6 12. a4 h6 {½-½ (52) Kovalev,V (2598)-Kovalenko,I (2684) Lisbon 2017}) 6. Qc2 {[%emt 0:01:10] LiveBook: 35 Games} g6 {[%emt 0:00:53]} 7. Nf3 {[%emt 0:00:30]} Bf5 {[%emt 0:00:47]} 8. Qc1 {[%emt 0:00:26]} Bg7 {[%emt 0:01:04]} 9. Nbd2 {[%emt 0:02:56]} Qd8 {[%emt 0:01:29]} ({Better is} 9... Nbd7 $11) 10. h3 {[%emt 0:03:17]} Nc6 {[%emt 0:02:30]} 11. Be2 $146 {[%emt 0:03:35]} ({Predecessor:} 11. b4 a6 12. a4 h6 13. Be2 g5 14. Bh2 Bg6 15. Ne5 Nxe5 16. Bxe5 Qd7 17. a5 O-O 18. O-O Ne4 19. Nxe4 Bxe4 20. Bxg7 Kxg7 21. Qe1 Bg6 22. Qd2 {½-½ (22) Maksimovic,B (2395)-Cabarkapa,S (2285) Niksic 1996}) 11... b5 {[%emt 0:02:02]} 12. Ne5 {[%emt 0:05:48]} Nxe5 {[%emt 0:04:15]} 13. Bxe5 {[%emt 0:00:19]} h5 {[%emt 0:02:04]} 14. Bf3 {[%emt 0:04:28]} Bd3 {[%emt 0:01:40]} 15. Qd1 {[%emt 0:08:09]} Kf8 {[%emt 0:03:11]} ({Better is} 15... e6 $11) 16. Be2 {[%emt 0:02:04]} Bf5 {[%emt 0:00:48]} 17. Bf3 {[%emt 0:01:02]} Rc8 {[%emt 0:05:44]} 18. O-O {[%emt 0:01:58]} Bd3 {[%emt 0:03:11]} 19. Be2 {[%emt 0:00:25]} Bf5 {[%emt 0:04:57]} 20. Bf3 {[%emt 0:00:31]} Ne4 {[%emt 0:01:50]} 21. Bxg7+ {[%emt 0:04:57]} Kxg7 {[%emt 0:00:08]} 22. Nxe4 {[%emt 0:00:11]} dxe4 {[%emt 0:00:16]} 23. Be2 {[%emt 0:00:07]} Qd6 {[%emt 0:02:52]} 24. Qe1 $11 {[%emt 0:10:44]} e5 {[%emt 0:27:20]} 25. Qd1 {[%emt 0:00:30]} Rcd8 {[%emt 0:00:30]} 26. Qd2 {[%emt 0:00:30]} Qf6 {[%emt 0:00:30]} 27. Rad1 {[%emt 0:00:30]} Qg5 {[%emt 0:00:30]} 28. Kh1 {[%emt 0:00:30]} Qh4 {[%emt 0:00:30]} 29. Qc1 {[%emt 0:00:30]} Rd5 {[%emt 0:00:30]} 30. Kh2 {[%emt 0:00:30]} g5 {[%emt 0:00:30]} 31. dxe5 {[%emt 0:00:30]} Rxe5 {[%emt 0:00:30]} 32. Qd2 {[%emt 0:00:30]} Rhe8 {[%emt 0:00:30]} 33. Qd6 {[%emt 0:00:30]} g4 {[%emt 0:00:30]} 34. Rd5 {[%emt 0:00:30]} R8e6 {[%emt 0:00:30]} 35. Qd8 {[%emt 0:00:30]} Qf6 {[%emt 0:00:30]} 36. Qxf6+ {[%emt 0:00:30]} Kxf6 {[%emt 0:00:30]} 37. Rxe5 {[%emt 0:00:30]} Kxe5 {[%emt 0:00:30]} 38. hxg4 {[%emt 0:00:30]} Bxg4 {[%emt 0:00:30]} 39. Bxg4 {[%emt 0:00:30]} hxg4 {[%emt 0:00:30]} 40. Rd1 {[%emt 0:00:30]} Rd6 {[%emt 0:00:30]} 41. Rxd6 {[%emt 0:30:30]} Kxd6 {[%emt 0:30:30]} 42. Kg3 {[%emt 0:00:30]} f5 {[%emt 0:00:30]} 43. Kf4 {[%emt 0:00:30]} Ke6 {[%emt 0:00:30]} 44. Kg5 {[%emt 0:00:30]} a5 45. Kg6 {[%emt 0:00:30]} f4 {[%emt 0:01:00]} 46. g3 {[%emt 0:03:43]} b4 {[%emt 0:00:26]} 47. gxf4 {[%emt 0:01:00]} a4 {[%emt 0:00:04]} 48. f5+ {[%emt 0:00:08]} Ke7 {[%emt 0:00:04]} 49. f6+ {[%emt 0:00:06]} Kf8 {[%emt 0:00:06]} 50. a3 {[%emt 0:00:07]} b3 {[%emt 0:00:06]} 51. f7 {[%emt 0:00:12]} 1-0

[Event "FIDE WCCC U10 2018"]
[Site "Santiago de Compostela"]
[Date "2018.11.11"]
[Round "7"]
[White "Bialiauski, Artsiom"]
[Black "Pingin, Artem"]
[Result "0-1"]
[ECO "D02"]
[WhiteElo "1791"]
[BlackElo "1981"]
[Annotator "NA RC"]
[PlyCount "30"]
[EventDate "2018.11.04"]
[EventType "swiss"]
[EventCountry "ESP"]
[SourceTitle "playchess.com"]
[Source "ChessBase"]
[SourceQuality "1"]
[TimeControl "40/5400+30:1800+30"]

{[%evp 8,29,5,32767,32767,22,-1,0,32767,32767,6,0,32767,-22,32767,0,32767,82,79,83,130,104,125,103]} 1. d4 {[%emt 0:00:04]} d5 {[%emt 0:00:00]} 2. Bf4 {[%emt 0:01:35]} Nf6 {[%emt 0:00:30]} 3. Nf3 {[%emt 0:00:53]} c5 {[%emt 0:00:55]} 4. c3 {[%emt 0:01:15]} Nc6 {[%emt 0:02:32]} 5. e3 {[%emt 0:01:42]} Qb6 {[%emt 0:00:31]} 6. Qb3 {[%emt 0:05:52]} c4 {[%emt 0:01:43] LiveBook: 639 Games} 7. Qxb6 {[%emt 0:00:47]} axb6 {[%emt 0:00:06]} 8. Na3 {[%emt 0:00:06]} h6 {[%emt 0:18:33]} 9. Be2 {[%emt 0:17:24]} Bf5 {[%emt 0:02:57]} 10. O-O {[%emt 0:03:14]} e6 {[%emt 0:01:36]} 11. Nb5 {[%emt 0:00:47]} Kd7 {[%emt 0:00:48]} 12. b3 {[%emt 0:03:38]} cxb3 {[%emt 0:09:17]} 13. axb3 {[%emt 0:00:07]} Be7 {[%emt 0:00:06]} 14. Ne5+ {[%emt 0:16:07]} Nxe5 {[%emt 0:00:23]} 15. Bxe5 $16 {[%emt 0:02:00]} Ne4 0-1

[Event "FIDE WCCC U10 2018"]
[Site "Santiago de Compostela"]
[Date "2018.11.11"]
[Round "7"]
[White "Nemsadze, Daviti"]
[Black "Vagman, Roy"]
[Result "0-1"]
[ECO "A10"]
[WhiteElo "1762"]
[BlackElo "1970"]
[Annotator "NA RC"]
[PlyCount "80"]
[EventDate "2018.11.04"]
[EventType "swiss"]
[EventCountry "ESP"]
[SourceTitle "playchess.com"]
[Source "ChessBase"]
[SourceQuality "1"]
[TimeControl "40/5400+30:1800+30"]

1. c4 {[%emt 0:00:00]} g6 {[%emt 0:00:00]} 2. g3 {[%emt 0:01:36]} Bg7 {[%emt 0:00:55]} 3. Bg2 {[%emt 0:00:05]} Nf6 {[%emt 0:02:08]} 4. Nc3 {[%emt 0:01:17]} c5 {[%emt 0:02:13]} 5. d3 {[%emt 0:04:57]} Nc6 {[%emt 0:01:29]} 6. e4 {[%emt 0:00:20]} d6 {[%emt 0:01:24]} 7. Nge2 {[%emt 0:00:31]} O-O {[%emt 0:01:58]} 8. O-O {[%emt 0:00:12]} Rb8 {[%emt 0:02:53]} 9. h3 {[%emt 0:02:24]} Ne8 {[%emt 0:05:27] LiveBook: 30 Games} 10. Be3 {[%emt 0:03:58]} e5 {[%emt 0:14:31]} 11. Nd5 {[%emt 0:11:54]} Nc7 {[%emt 0:00:30]} 12. Nec3 {[%emt 0:00:45]} Ne6 {[%emt 0:00:50]} 13. a3 Ncd4 {[%emt 0:05:58]} 14. f4 $11 {[%emt 0:25:57]} exf4 15. gxf4 {[%emt 0:00:30]} f5 16. a4 {[%emt 0:00:30]} b6 17. Rb1 {[%emt 0:00:30]} Bb7 18. Rf2 {[%emt 0:00:30]} Qh4 19. Qf1 {[%emt 0:00:30]} Rf7 20. b4 {[%emt 0:00:30]} Re8 21. bxc5 {[%emt 0:00:30]} Nxc5 22. Rb4 {[%emt 0:00:30]} Bxd5 23. cxd5 {[%emt 0:00:30]} Nc6 24. dxc6 {[%emt 0:00:30]} Bxc3 25. Rc4 {[%emt 0:00:30]} Bg7 26. e5 {[%emt 0:00:30]} d5 27. Bxd5 {[%emt 0:00:30]} Qg3+ 28. Qg2 {[%emt 0:00:30]} Qxe3 29. Bxf7+ {[%emt 0:00:30]} Kxf7 30. Qf3 {[%emt 0:00:30]} Qxf3 31. Rxf3 {[%emt 0:00:30]} Ke6 32. Rd4 {[%emt 0:00:30]} Bf8 33. Rc4 {[%emt 0:00:30]} Kd5 34. Rc1 {[%emt 0:00:30]} Nxa4 35. c7 {[%emt 0:00:30]} Bc5+ 36. d4 {[%emt 0:00:30]} Bxd4+ 37. Kg2 {[%emt 0:00:30]} Nc5 38. e6 {[%emt 0:00:30]} Kd6 39. Rd1 {[%emt 0:00:30]} Nxe6 40. Rc3 {[%emt 0:00:30]} Rc8 0-1

[Event "FIDE WCCC U10 2018"]
[Site "Santiago de Compostela"]
[Date "2018.11.11"]
[Round "7"]
[White "Anand, Batsukh"]
[Black "Hagner, Bennet"]
[Result "1/2-1/2"]
[ECO "B10"]
[WhiteElo "1746"]
[BlackElo "1912"]
[Annotator "NA RC"]
[PlyCount "64"]
[EventDate "2018.11.04"]
[EventType "swiss"]
[EventCountry "ESP"]
[SourceTitle "playchess.com"]
[Source "ChessBase"]
[SourceQuality "1"]
[TimeControl "40/5400+30:1800+30"]

{[%evp 13,62,20,32767,29,33,32767,41,27,56,25,31,12,16,12,32767,11,32767,32767,20,-196,-97,-167,-62,32767,-340,32767,32767,-256,-281,-290,32767,-344,-350,-354,32767,-420,-442,-407,-443,32767,-8,-29,0,0,0,0,0,32767,0,32767,0]} 1. e4 {[%emt 0:01:04]} c6 {[%emt 0:00:00]} 2. Nc3 {[%emt 0:01:38]} d5 {[%emt 0:00:00]} 3. Nf3 {[%emt 0:01:35]} dxe4 {[%emt 0:01:58]} 4. Nxe4 {[%emt 0:01:29]} Nd7 {[%emt 0:01:19]} 5. Bc4 {[%emt 0:01:24]} Ngf6 {[%emt 0:01:02]} 6. Qe2 {[%emt 0:01:31] B11: Caro-Kann: Two Knights Variation} (6. Neg5 Nd5 7. d4 g6 8. Qe2 h6 9. Ne4 Bg7 10. Nd6+ Kf8 11. Nxc8 Rxc8 12. Bb3 e6 13. Bd2 Bf6 14. c4 {1-0 (30) Mamedov,R (2709)-Artemiev,V (2691) Huaian 2017}) 6... Nxe4 {[%emt 0:00:55]} 7. Qxe4 {[%emt 0:01:09]} Nf6 {[%emt 0:00:26]} 8. Ne5 {[%emt 0:01:49]} e6 {[%emt 0:01:00]} 9. Qe2 {[%emt 0:01:17]} Qc7 {[%emt 0:03:36]} 10. d4 {[%emt 0:01:52]} Bd6 {[%emt 0:04:44] LiveBook: 3 Games} 11. c3 {[%emt 0:02:54]} O-O {[%emt 0:10:44]} 12. Bd3 {[%emt 0:05:17]} b6 $146 {[%emt 0:01:29]} ({Predecessor:} 12... Nd7 13. f4 Rd8 14. O-O Nf8 15. Rf3 f6 16. Nc4 Be7 {1-0 (32) Suetin,A-Poliak,E Kiev (Ukraine) 1958}) 13. Bg5 {[%emt 0:01:34]} Nd5 {[%emt 0:06:25]} 14. Qe4 {[%emt 0:02:53]} f5 {[%emt 0:00:23]} 15. Qe2 {[%emt 0:00:26]} c5 {[%emt 0:04:20]} 16. Nc4 $2 {[%emt 0:22:16] [#]} (16. O-O $11 {and White stays safe.}) 16... cxd4 {[%emt 0:04:19]} ({Black should try} 16... Bf4 $1 $19 {[%cal Rf4g5]} 17. Bh4 cxd4 18. cxd4 Nb4 (18... Bh6)) 17. cxd4 {[%emt 0:06:54] [#]} (17. Nxd6 $17 {is a better defense.} Qxd6 18. cxd4) 17... Bb4+ {[%emt 0:02:27]} 18. Nd2 {[%emt 0:02:52]} h6 {[%emt 0:02:06]} 19. Bh4 {[%emt 0:01:41]} g5 {[%emt 0:01:29]} 20. Bg3 {[%emt 0:01:39]} f4 {[%emt 0:00:12]} 21. a3 {[%emt 0:08:07]} Bxd2+ {[%emt 0:00:53]} 22. Kxd2 {[%emt 0:00:08]} Qg7 {[%emt 0:05:32]} ({Don't take} 22... fxg3 23. hxg3 Qg7 24. Ke1) 23. Rac1 {[%emt 0:04:45]} Bd7 {[%emt 0:06:47]} 24. f3 {[%emt 0:02:07]} fxg3 {[%emt 0:01:31]} 25. hxg3 {[%emt 0:00:08]} Qxd4 {[%emt 0:02:18]} 26. Rxh6 {[%emt 0:00:20]} Qxb2+ $2 {[%emt 0:07:42]} (26... Rac8 $19 27. Rd1 Qxb2+ 28. Ke1 Qxe2+ 29. Bxe2 Kg7) 27. Rc2 {[%emt 0:00:11]} Qxa3 {[%emt 0:00:20]} 28. Qe5 {[%emt 0:12:21]} Qa5+ {[%emt 0:07:05]} ({Inferior is} 28... Rac8 29. Qxg5+ Kf7 30. Bg6+ Kg8 31. Bh5#) 29. Kc1 {[%emt 0:02:37]} Nf6 {[%emt 0:04:36]} 30. Rg6+ {[%emt 0:00:09]} Kh8 {[%emt 0:00:17]} 31. Rh6+ {[%emt 0:00:15]} Kg8 $11 {[%emt 0:00:44]} 32. Rg6+ {[%emt 0:00:43]} Kh8 {[%emt 0:05:06]} 1/2-1/2

[Event "FIDE WCCC U10 2018"]
[Site "Santiago de Compostela"]
[Date "2018.11.11"]
[Round "7"]
[White "Matsumura, Cocoro"]
[Black "Sosa Costa, Leonardo"]
[Result "0-1"]
[ECO "B71"]
[WhiteElo "1699"]
[BlackElo "1945"]
[Annotator "NA RC"]
[PlyCount "58"]
[EventDate "2018.11.04"]
[EventType "swiss"]
[EventCountry "ESP"]
[SourceTitle "playchess.com"]
[Source "ChessBase"]
[SourceQuality "1"]
[TimeControl "40/5400+30:1800+30"]

{[%evp 8,56,28,39,32767,32767,32767,32767,32767,60,48,32767,40,37,32767,32767,71,32767,32767,32767,152,32767,160,32767,32767,32767,32767,32767,146,105,198,161,32767,32767,32767,33,24,0,0,32767,-81,-137,32767,32767,32767,32767,-644,-908,32767,-1026,-906]} 1. e4 {[%emt 0:00:00]} c5 {[%emt 0:00:00]} 2. Nf3 {[%emt 0:00:00]} d6 {[%emt 0:00:00]} 3. d4 {[%emt 0:00:00]} cxd4 {[%emt 0:00:00]} 4. Nxd4 {[%emt 0:00:00]} Nf6 {[%emt 0:00:12] LiveBook: 96017 Games} 5. Nc3 {[%emt 0:00:00]} g6 {[%emt 0:00:16]} 6. f4 {[%emt 0:00:00]} Nfd7 {[%emt 0:07:11] B71: Sicilian Dragon: 6 f4} (6... Nbd7 7. Qf3 Bg7 8. Be3 a6 9. O-O-O e5 10. Nb3 Qc7 11. g4 exf4 12. Bxf4 Ne5 13. Bxe5 dxe5 14. g5 Nh5 {1-0 (56) Smeets,J (2643)-Sebenik,M (2511) Biel 2013}) 7. Bc4 {[%emt 0:05:40]} Bg7 {[%emt 0:02:16]} 8. Be3 {[%emt 0:02:32]} O-O {[%emt 0:00:51]} 9. O-O {[%emt 0:01:32]} Nc6 10. Qd2 {[%emt 0:03:21]} Nf6 {[%emt 0:15:18]} 11. h3 {[%emt 0:06:33]} Bd7 $146 {[%emt 0:05:52]} (11... Nxe4 $11 {keeps the balance.} 12. Nxe4 Bxd4) ({Predecessor:} 11... a5 12. Rae1 Qc7 13. Nf3 Nb4 14. Bb3 Bd7 15. a3 Na6 16. Qf2 Nc5 17. Bxc5 dxc5 {½-½ (28) Liez,F (1506)-Graf,C (1739) Stuttgart 2010}) 12. Rad1 {[%emt 0:01:41]} a6 {[%emt 0:02:19]} 13. e5 {[%emt 0:12:19]} Ne8 {[%emt 0:07:53]} (13... dxe5 $11 14. Nxc6 Bxc6) 14. e6 {[%emt 0:01:48]} fxe6 {[%emt 0:02:17]} 15. Nxe6 {[%emt 0:01:09]} Bxe6 {[%emt 0:00:16]} 16. Bxe6+ {[%emt 0:00:01]} Kh8 {[%emt 0:00:08]} 17. Nd5 {[%emt 0:01:14]} b5 {[%emt 0:03:07]} 18. Qf2 {[%emt 0:09:54]} ({Better is} 18. f5 $18) 18... a5 {[%emt 0:10:17]} (18... Bxb2 $16 {war einen Versuch wert.} 19. Nb6 Bg7) 19. Nb6 {[%emt 0:14:54]} Ra7 {[%emt 0:04:44]} 20. Qf3 {[%emt 0:08:37]} Nb8 {[%emt 0:09:14]} 21. Nc8 $2 {[%emt 0:05:31]} (21. Nd5 $18 Ra6 22. f5) 21... Ra6 {[%emt 0:00:44]} 22. Qb7 {[%emt 0:00:23]} Nc7 {[%emt 0:00:36]} 23. Bb6 {[%emt 0:15:00]} Rxb6 $1 {[%emt 0:00:46]} 24. Nxb6 {[%emt 0:00:52]} Nxe6 {[%emt 0:00:14]} 25. Rde1 {[%emt 0:00:08]} Nc5 {[%emt 0:02:54]} 26. Qxe7 {[%emt 0:04:12]} Qxb6 {[%emt 0:00:12]} 27. f5 {[%emt 0:00:30]} Nc6 {[%emt 0:02:38]} 28. Qh4 {[%emt 0:01:30]} gxf5 $19 {[%emt 0:02:36]} 29. Re8 {[%emt 0:00:50]} Rxe8 0-1